fUSD/lending_fUSD_20250401
["ID","MTS","AMOUNT","RATE_DAILY","PERIOD"]
[356956987,1743491438451,-150.0,0.00044591,2]
[356956988,1743491438460,-150.0,0.00044593,2]
[356956989,1743491438470,-150.0,0.00044596,2]
[356956990,1743491438480,-150.0,0.00044599,2]
[356956991,1743491438489,-150.0,0.000446,2]
[356956992,1743491438500,-150.0,0.00044605,2]
[356956993,1743491438672,-150.0,0.00044608,2]
[356956994,1743491438682,-150.0,0.00044611,2]
[356956995,1743491438692,-150.0,0.00044614,2]
[356956996,1743491438701,-150.0,0.00044618,2]
[356956997,1743491438710,-150.0,0.00044619,2]
[356956998,1743491438720,-150.0,0.0004462,2]
[356956999,1743491438729,-150.0,0.00044621,2]
[356957000,1743491438740,-150.0,0.00044622,2]
[356957001,1743491438749,-150.0,0.00044626,2]
[356957002,1743491438759,-150.0,0.0004463,2]
[356957003,1743491438769,-150.0,0.00044631,2]
[356957004,1743491438780,-150.0,0.00044635,2]
[356957005,1743491438790,-150.0,0.00044636,2]
[356957006,1743491438800,-150.0,0.00044639,2]
[356957007,1743491438809,-150.0,0.00044639,2]
[356957008,1743491438821,-150.0,0.00044639,2]
[356957009,1743491438833,-150.0,0.00044641,2]
[356957010,1743491438843,-150.0,0.00044647,2]
[356957011,1743491438853,-150.0,0.00044649,2]
[356957012,1743491438862,-150.0,0.00044651,2]
[356957013,1743491438872,-150.0,0.00044659,2]
[356957014,1743491438882,-150.0,0.00044662,2]
[356957015,1743491438892,-150.0,0.00044666,2]
[356957016,1743491438902,-270.27817576,0.00044672,2]
[356957017,1743491438912,-150.0,0.00044673,2]
[356957018,1743491438922,-150.0,0.00044681,2]
[356957019,1743491438932,-150.0,0.00044682,2]
[356957020,1743491438942,-150.0,0.00044682,2]
[356957021,1743491438952,-150.0,0.00044684,2]
[356957022,1743491438962,-150.0,0.00044688,2]
[356957023,1743491438971,-150.0,0.0004469,2]
[356957024,1743491438981,-150.0,0.00044705,2]
[356957025,1743491438991,-150.0,0.00044706,2]
[356957026,1743491439000,-150.0,0.00044709,2]
[356957027,1743491439011,-150.0,0.00044709,2]
[356957028,1743491439021,-150.0,0.00044713,2]
[356957029,1743491439030,-150.0,0.00044714,2]
[356957030,1743491439040,-150.0,0.00044717,2]
[356957031,1743491439049,-150.0,0.00044737,2]
[356957032,1743491439058,-150.0,0.00044741,2]
[356957033,1743491439068,-150.0,0.0004475,2]
[356957034,1743491439077,-150.0,0.00044751,2]
[356957035,1743491439086,-150.0,0.00044752,2]
[356957036,1743491439096,-150.0,0.00044752,2]
[356957037,1743491439106,-150.0,0.0004476,2]
[356957038,1743491439116,-150.0,0.00044761,2]
[356957039,1743491439126,-150.0,0.00044764,2]
[356957040,1743491439136,-150.0,0.00044767,2]
[356957041,1743491439145,-916.0,0.0004477,7]
[356957042,1743491439155,-150.0,0.0004477,2]
[356957043,1743491439165,-150.0,0.00044773,2]
[356957044,1743491439174,-150.0,0.00044776,2]
[356957045,1743491439184,-150.0,0.00044778,2]
[356957046,1743491439194,-238.65967043,0.0004478,2]
[356957047,1743491439205,-150.0,0.00044794,2]
[356957049,1743491439214,-150.0,0.00044794,2]
[356957050,1743491439224,-150.0,0.00044798,2]
[356957051,1743491439234,-150.0,0.000448,2]
[356957052,1743491439243,-150.0,0.00044805,2]
[356957053,1743491439252,-150.0,0.00044809,2]
[356957054,1743491439262,-150.0,0.0004481,2]
[356957055,1743491439271,-150.0,0.00044813,2]
[356957056,1743491439281,-150.0,0.00044816,2]
[356957057,1743491439291,-150.0,0.00044816,2]
[356957058,1743491439301,-150.0,0.00044819,2]
[356957059,1743491439311,-150.0,0.00044824,2]
[356957060,1743491439320,-150.0,0.00044854,2]
[356957061,1743491439329,-765.75054111,0.0004489,65]
[356957062,1743491439339,-6583.23822655,0.0004489,15]
[356957063,1743491439349,-527.60144808,0.000449,17]
[356957065,1743491439359,-167.18308125,0.000449,28]
[356957067,1743491439369,-152.53458628,0.00044906,2]
[356957069,1743491439379,-412.45529522,0.00044989,5]
[356957070,1743491439390,-151.0,0.00045,120]
[356957071,1743491439400,-20276.08082535,0.00045,10]
[356957072,1743491439422,-59723.91917465,0.00045,10]
[356957073,1743491439436,-60000.0,0.00045,60]
[356957075,1743491439445,-500.0,0.00045,120]
[356957081,1743491439456,-3000.0,0.00045,30]
[356957086,1743491439466,-401.3666462,0.00045038,2]
[356957089,1743491439476,-9067.8051242,0.00045038,2]
[356957091,1743491439485,-2557.315451,0.00045069,2]
[356957093,1743491439495,-307.55,0.00045409,2]
[356957095,1743491439506,-238.12,0.000455,2]
[356957097,1743491439516,-1000.0,0.00045665,2]
[356957099,1743491439525,-3648.06021334,0.00046181,15]
[356957101,1743491439535,-6583.23822649,0.00046455,15]
[356957102,1743491439544,-432.15485365,0.00046826,2]
[356957103,1743491439554,-190.2,0.00047486,2]
[356957104,1743491439563,-307.55,0.00047673,2]
[356957105,1743491439573,-3648.06021334,0.00047861,15]
[356957106,1743491439582,-6583.23822649,0.00048021,15]
[356957107,1743491439591,-896.48832709,0.00048289,10]
[356957108,1743491439602,-506.40790661,0.00048773,10]
[356957109,1743491439611,-500.91791229,0.00048773,10]
[356957110,1743491439621,-161.33390775,0.00048773,10]
[356957111,1743491439631,-2000.0,0.00048776,8]
[356957112,1743491439640,-24152.9168618,0.0004878,4]
[356957113,1743491439650,-151.6,0.0004878,2]
[356957114,1743491439659,-151.0,0.0004879,14]
[356957115,1743491439668,-151.0,0.0004879,14]
[356957116,1743491439678,-151.0,0.0004879,14]
[356957117,1743491439687,-151.0,0.0004879,14]
[356957118,1743491439697,-84535.2090164,0.0004879,4]
[356957119,1743491439708,-151.0,0.0004879,14]
[356957120,1743491439718,-151.0,0.0004879,14]
[356957121,1743491439727,-151.0,0.0004879,14]
[356957122,1743491439737,-151.0,0.0004879,14]
[356957123,1743491439747,-151.0,0.0004879,14]
[356957124,1743491439756,-151.0,0.0004879,14]
[356957125,1743491439765,-295.228636,0.0004879,14]
[356957126,1743491439775,-151.0,0.0004879,14]
[356957127,1743491439785,-151.0,0.0004879,14]
[356957128,1743491439795,-151.0,0.0004879,14]
[356957129,1743491439805,-151.0,0.0004879,14]
[356957130,1743491439814,-151.0,0.0004879,14]
[356957131,1743491439823,-151.0,0.0004879,14]
[356957132,1743491439832,-7877.17731248,0.000488,7]
[356957133,1743491439843,-159871.6702615,0.000488,120]
[356957134,1743491439852,-151.0,0.000488,14]
[356957135,1743491439862,-208.313176,0.000488,14]
[356957136,1743491439871,-151.0,0.000488,14]
[356957137,1743491439882,-151.0,0.000488,14]
[356957138,1743491439891,-151.0,0.000488,14]
[356957139,1743491439901,-151.0,0.000488,14]
[356957140,1743491439912,-153.223263,0.000488,14]
[356957141,1743491439921,-151.0,0.000488,14]
[356957142,1743491439932,-151.0,0.000488,14]
[356957143,1743491439942,-153.29691,0.000488,14]
[356957144,1743491439951,-151.0,0.000488,14]
[356957145,1743491439961,-154.321351,0.000488,14]
[356957146,1743491439970,-158.544687,0.000488,14]
[356957147,1743491439980,-151.0,0.000488,14]
[356957148,1743491439990,-151.0,0.000488,14]
[356957149,1743491440000,-151.0,0.000488,14]
[356957150,1743491440009,-151.0,0.000488,14]
[356957151,1743491440019,-151.0,0.000488,14]
[356957152,1743491440028,-212.110383,0.000488,14]
[356957153,1743491440038,-153.844715,0.000488,14]
[356957154,1743491440047,-151.0,0.000488,14]
[356957155,1743491440056,-549.655126,0.000488,14]
[356957156,1743491440064,-151.0,0.000488,14]
[356957157,1743491440073,-549.655126,0.000488,14]
[356957158,1743491440082,-549.655126,0.000488,14]
[356957159,1743491440091,-549.655126,0.000488,14]
[356957160,1743491440099,-151.0,0.000488,14]
[356957161,1743491440109,-197.933056,0.000488,14]
[356957162,1743491440119,-151.0,0.000488,14]
[356957163,1743491440128,-151.0,0.000488,14]
[356957164,1743491440138,-195.117774,0.000488,14]
[356957165,1743491440148,-286.275235,0.000488,14]
[356957167,1743491440158,-152.930076,0.000488,14]
[356957169,1743491440167,-151.0,0.000488,14]
[356957171,1743491440176,-151.0,0.000488,14]
[356957173,1743491440186,-151.0,0.000488,14]
[356957175,1743491440195,-151.0,0.000488,14]
[356957177,1743491440204,-151.0,0.000488,14]
[356957179,1743491440214,-151.0,0.000488,14]
[356957181,1743491440223,-256.811124,0.000488,14]
[356957183,1743491440232,-161.92,0.00048877,2]
[356957185,1743491440242,-1000.0,0.00049315,20]
[356957186,1743491440252,-502.08657237,0.00049327,10]
[356957188,1743491440262,-160.386387,0.000494,120]
[356957190,1743491440271,-151.0,0.000494,120]
[356957192,1743491440280,-151.0,0.000494,120]
[356957194,1743491440290,-187.502986,0.000494,120]
[356957196,1743491440299,-500.0,0.000494,120]
[356957198,1743491440309,-500.96368233,0.00049521,10]
[356957200,1743491440318,-3648.06021334,0.00049542,15]
[356957201,1743491440328,-6583.23822649,0.00049586,15]
[356957202,1743491440337,-151.6,0.00049776,120]
[356957203,1743491440347,-253.2442955,0.0004978,37]
[356957204,1743491440356,-12076.4584309,0.00049786,4]
[356957205,1743491440366,-201.78712354,0.00049796,60]
[356957206,1743491440375,-199.33,0.000498,120]
[356957207,1743491440385,-24152.9168618,0.0004985,4]
[356957209,1743491440394,-32412.50529815,0.0004986,4]
[356957210,1743491440405,-340.53703606,0.0004986,4]
[356957211,1743491440415,-2650.71396786,0.0004986,4]
[356957212,1743491440586,-151.0,0.000488,14]
[356957213,1743491440597,-825.61899063,0.0004986,4]
[356957214,1743491440607,-3115.53525902,0.0004987,5]
[356957215,1743491440690,-2685.31124165,0.0004987,5]
[356957256,1743491442748,-478.91229789,0.0004987,5]
[356957257,1743491442952,-286.46069709,0.0004987,5]
[356957435,1743492356133,974.75038744,0.0001489,2]
[356957438,1743492425508,-150.0,0.00014999,2]
[356957439,1743492425538,-24850.0,0.00015,2]
[356957440,1743492426384,-25000.0,0.00015,2]
[356957441,1743492427214,-25000.0,0.00015,2]
[356957442,1743492428015,-25000.0,0.00015,2]
[356957443,1743492466741,3559.59048439,0.000149,2]
[356957444,1743492466765,4534.34087183,0.000149,2]
[356957445,1743492466792,1382.40004378,0.000149,2]
[356957450,1743492510810,3151.94082805,0.00013699,2]
[356957451,1743492510835,1398.92917195,0.00013699,2]
[356957452,1743492511167,3135.41169988,0.00013699,2]
[356957453,1743492511194,1415.45830012,0.00013699,2]
[356957454,1743492511514,3118.88257171,0.00013699,2]
[356957455,1743492511537,1431.98742829,0.00013699,2]
[356957456,1743492512498,3102.35344354,0.00013699,2]
[356957457,1743492512521,1448.51655646,0.00013699,2]
[356957458,1743492513455,3085.82431537,0.00013699,2]
[356957459,1743492513479,1465.04568463,0.00013699,2]
[356957460,1743492514214,3069.2951872,0.00013699,2]
[356957461,1743492514239,1481.5748128,0.00013699,2]
[356957462,1743492515124,3052.76605903,0.00013699,2]
[356957463,1743492515149,1498.10394097,0.00013699,2]
[356957464,1743492515673,3036.23693086,0.00013699,2]
[356957465,1743492515702,1514.63306914,0.00013699,2]
[356957466,1743492516015,4550.87,0.00013699,2]
[356957467,1743492516407,4550.87,0.00013699,2]
[356957468,1743492516922,4550.87,0.00013699,2]
[356957469,1743492517280,4550.87,0.00013699,2]
[356957470,1743492517670,4550.87,0.00013699,2]
[356957471,1743492518183,4550.87,0.00013699,2]
[356957472,1743492518571,4550.87,0.00013699,2]
[356957473,1743492519001,2115.16827808,0.00013699,2]
[356957474,1743492519028,2435.70172192,0.00013699,2]
[356957475,1743492519569,4550.87,0.00013699,2]
[356957476,1743492519928,4550.87,0.00013699,2]
[356957477,1743492520291,4550.87,0.00013699,2]
[356957478,1743492520667,4550.87577463,0.00013699,2]
[356957486,1743492532682,-3767.41341766,0.000149,2]
[356957494,1743492602706,350.0,0.0001495,12]
[356957495,1743492628471,-219.95617831,0.0001489,2]
[356957503,1743492631770,-1099.63864762,0.000149,2]
[356957504,1743492631781,-1155.26453681,0.000149,2]
[356957505,1743492631793,-1284.24496319,0.000149,2]
[356957506,1743492631803,-1498.5976507,0.00015,2]
[356957507,1743492631822,-3473.13022299,0.00015,2]
[356957508,1743492631842,-1366.11048177,0.00015,2]
[356957509,1743492631855,-4309.6899302,0.00015,2]
[356957510,1743492631868,-2011.64315868,0.00015,2]
[356957511,1743492631879,-4178.856,0.00015,2]
[356957512,1743492632120,-1816.92473786,0.00015,2]
[356957513,1743492632132,-9548.57525494,0.00015,2]
[356957514,1743492632143,-787.72537109,0.00015,2]
[356957515,1743492632155,-367.35042861,0.00015,2]
[356957516,1743492632167,-687.92150937,0.00015,2]
[356957517,1743492632178,-59956.23853358,0.00015,2]
[356957533,1743492637779,-988.0907459,0.00015,2]
[356957534,1743492637902,-786.946942,0.00015,2]
[356957535,1743492637913,-394.4639737,0.00015,2]
[356957537,1743492638112,-69449.70367477,0.00015,2]
[356957539,1743492638123,-3297.9440171,0.00015,2]
[356957614,1743492640119,-228281.6536213,0.00015,2]
[356957615,1743492640419,-584.9655,0.00015,2]
[356957662,1743492642819,-20999.99999995,0.00015,2]
[356957664,1743492642940,-619.2449657,0.00015,2]
[356957667,1743492642951,-724.35005528,0.00015,2]
[356957677,1743492643556,-754.32475265,0.00015,2]
[356957678,1743492643568,-293.75433028,0.00015,2]
[356957679,1743492643579,-1643.06551133,0.00015,2]
[356957680,1743492643590,-627.32418262,0.00015,2]
[356957684,1743492645813,-500.0,0.00015,2]
[356957685,1743492645952,-622.15636844,0.00015,2]
[356957686,1743492646093,-371.2,0.00015,2]
[356957687,1743493152396,-350.0,0.00015695,12]
[356957718,1743493831898,-1620.51027677,0.00015,2]
[356957719,1743493831910,-803.28453,0.00015,2]
[356957721,1743493831921,-1028.79,0.00015,2]
[356957723,1743493831933,-750.37477044,0.00015,2]
[356957725,1743493831945,-5669.24041241,0.00015,2]
[356957727,1743493831956,-3071.705,0.00015,2]
[356957730,1743493831967,-718.78087629,0.00015,2]
[356957734,1743493831980,-975.09804948,0.00015,2]
[356957739,1743493832008,-1133.11323801,0.00015,2]
[356957740,1743493832019,-10173.95825475,0.00015,2]
[356957741,1743493832030,-254.33428482,0.00015,2]
[356957742,1743493832063,-13006.82943429,0.00015,2]
[356957743,1743493832077,-4158.46459705,0.00015,2]
[356957744,1743493832088,-350.0,0.00015375,12]
[356957745,1743493832098,-350.0,0.000165,12]
[356957746,1743493832107,-350.0,0.000165,12]
[356957747,1743493832117,-586.98839046,0.00019889,2]
[356957748,1743493832129,-2459.81248633,0.00019889,2]
[356957749,1743493832145,-288.0,0.00019889,2]
[356957750,1743493832157,-659.5823455,0.00019889,2]
[356957751,1743493832166,-150.0,0.00019899,2]
[356957752,1743493832176,-576.52341344,0.000199,2]
[356957753,1743493832190,-1075.43,0.000199,2]
[356957754,1743493832209,-1307.36098656,0.000199,2]
[356957755,1743493832219,-971.48930866,0.000199,2]
[356957756,1743493832230,-1906.8639001,0.000199,2]
[356957757,1743493832242,-1434.24613958,0.000199,2]
[356957758,1743493832259,-220.41495166,0.000199,2]
[356957759,1743493832270,-2533.5936,0.000199,2]
[356957760,1743493832279,-2084.82573234,0.000199,2]
[356957761,1743493832299,-555.12801202,0.000199,2]
[356957762,1743493832310,-419.18634319,0.000199,2]
[356957763,1743493832357,-963.81641169,0.000199,2]
[356957764,1743493832369,-4592.15331119,0.000199,2]
[356957765,1743493832381,-4033.91828957,0.000199,2]
[356957766,1743493832390,-30957.41834712,0.000199,2]
[356957767,1743493832403,-5052.16395288,0.000199,2]
[356957768,1743493832412,-2876.2152,0.000199,2]
[356957769,1743493832422,-1287.49648009,0.0002,4]
[356957776,1743493837746,-3373.07,0.0002,4]
[356957777,1743493837758,-1741.22,0.0002,4]
[356957779,1743493837934,-6596.03655,0.0002,4]
[356957780,1743493838001,-252.72,0.0002,4]
[356957828,1743493839998,-417.75,0.0002,4]
[356957829,1743493840193,-4188.9786403,0.0002,4]
[356957854,1743493845851,-7836.3483,0.000199,2]
[356957855,1743493845863,-6337.52247181,0.0002,4]
[356957856,1743493845874,-2556.12922689,0.0002,4]
[356957857,1743493845932,-1307.42462645,0.0002,4]
[356957858,1743493845945,-564.88228283,0.0002,4]
[356957859,1743493846136,-1419.0,0.0002,4]
[356957909,1743495031981,-250.0,0.00017,2]
[356957911,1743495031992,-350.0,0.00018,12]
[356957913,1743495032002,-350.0,0.000187,12]
[356957915,1743495032012,-166.71996023,0.00019,2]
[356957922,1743495032256,-133.28003977,0.00019,2]
[356957923,1743495032266,-349.72784427,0.0001906,12]
[356957924,1743495032312,-0.27215573,0.0001906,12]
[356957925,1743495032322,-257.12784427,0.00019701,2]
[356957926,1743495032333,-42.87215573,0.00019701,2]
[356957927,1743495032342,-393.97109917,0.000198,2]
[356957928,1743495032352,-1734.5859,0.000199,2]
[356957929,1743495032361,-977.1181,0.000199,2]
[356957930,1743495032371,-457.7568,0.000199,2]
[356957931,1743495032380,-492.48759764,0.0001999,2]
[356957932,1743495032390,-1989.82721265,0.0002,4]
[356957962,1743495038089,-641.17075531,0.0002,4]
[356957964,1743495038100,-1017.88663696,0.0002,4]
[356957974,1743495040096,-891.72127326,0.0002,4]
[356957975,1743495040108,-1620.12051884,0.0002,4]
[356957976,1743495040119,-418.60597192,0.0002,4]
[356957977,1743495040200,-506.35514668,0.0002,4]
[356957978,1743495040257,-3868.2,0.0002,4]
[356957979,1743495040427,-1944.46075845,0.0002,4]
[356957980,1743495040538,-85000.69238988,0.0002,4]
[356957981,1743495040548,-350.0,0.00021,2]
[356957982,1743495040558,-437.08493552,0.00021,2]
[356957983,1743495040568,-152.50106859,0.00022,3]
[356957984,1743495040578,-250.0,0.00022463,2]
[356957985,1743495040588,-400.0,0.00023,2]
[356957987,1743495040597,-818.27,0.000239,2]
[356957988,1743495040607,-4237.3,0.000239,2]
[356957990,1743495040617,-1140.58,0.000239,2]
[356957992,1743495040627,-299.99,0.000239,7]
[356957994,1743495040636,-17836.71968949,0.00023989,2]
[356957996,1743495040646,-1973.14617646,0.00024,2]
[356957998,1743495040655,-186.09,0.00026849,2]
[356958000,1743495040665,-161.92,0.00026849,2]
[356958002,1743495040675,-158.7,0.00026849,2]
[356958004,1743495040684,-487.666458,0.000274,2]
[356958006,1743495040697,-164.48,0.00027973,18]
[356958008,1743495040707,-451.43,0.00028757,2]
[356958010,1743495040716,-250.0,0.00029463,2]
[356958012,1743495040727,-1772.1,0.00029689,2]
[356958014,1743495040738,-23900.0,0.00029733,2]
[356958017,1743495040748,-200.0,0.00029749,2]
[356958019,1743495040757,-874.68,0.00029754,2]
[356958021,1743495040769,-8400.72,0.00029833,2]
[356958023,1743495040779,-542.57,0.00029851,2]
[356958025,1743495040788,-542.57,0.00029859,2]
[356958027,1743495040797,-542.57,0.00029867,2]
[356958029,1743495040807,-542.57,0.00029875,2]
[356958031,1743495040817,-501.64179294,0.00029882,5]
[356958032,1743495040826,-542.57,0.00029883,2]
[356958034,1743495040836,-542.57,0.00029891,2]
[356958036,1743495040845,-542.57,0.00029899,2]
[356958039,1743495040855,-304.9,0.000299,2]
[356958041,1743495040865,-542.57,0.00029906,2]
[356958043,1743495040875,-542.57,0.00029914,2]
[356958045,1743495040884,-542.57,0.00029922,2]
[356958047,1743495040895,-542.57,0.0002993,2]
[356958049,1743495040905,-542.57,0.00029938,2]
[356958051,1743495040914,-542.57,0.00029946,2]
[356958053,1743495040924,-542.57,0.00029954,2]
[356958054,1743495040934,-2188.83612804,0.00029961,2]
[356958056,1743495040943,-542.57,0.00029961,2]
[356958058,1743495040952,-542.57,0.00029969,2]
[356958060,1743495040961,-542.57,0.00029977,2]
[356958062,1743495040970,-542.57,0.00029985,2]
[356958064,1743495040979,-542.57,0.00029993,2]
[356958066,1743495040993,-13499.56072765,0.0003,2]
[356958068,1743495041003,-542.57,0.00030001,2]
[356958070,1743495041012,-310.75,0.00030061,2]
[356958072,1743495041022,-511.95,0.00030112,2]
[356958074,1743495041032,-1000.0,0.00030164,2]
[356958076,1743495041041,-561.55039679,0.00030411,22]
[356958078,1743495041051,-212.0,0.00030441,2]
[356958081,1743495041062,-3815.51,0.00030441,2]
[356958083,1743495041071,-187.13779138,0.00030509,2]
[356958085,1743495041081,-2610.4397238,0.00030511,2]
[356958087,1743495041092,-150.0,0.00030552,2]
[356958089,1743495041102,-178.82,0.00030552,2]
[356958091,1743495041112,-172.02,0.00030586,2]
[356958093,1743495041122,-162.57,0.00030699,2]
[356958095,1743495041132,-181.01,0.00030998,2]
[356958097,1743495041142,-451.43,0.00031021,2]
[356958099,1743495041153,-28755.6901,0.00031749,2]
[356958101,1743495041162,-452.04013342,0.000318,2]
[356958103,1743495041172,-152.35,0.00031922,2]
[356958105,1743495041183,-4048.78424854,0.00032138,2]
[356958107,1743495041193,-4661.0,0.000323,5]
[356958109,1743495041203,-600.0,0.00032371,2]
[356958111,1743495041213,-151.15,0.00032932,120]
[356958113,1743495041223,-2188.836128,0.00033074,2]
[356958115,1743495041233,-324.98,0.00033102,2]
[356958117,1743495041243,-500.32262048,0.00033143,5]
[356958119,1743495041253,-500.0,0.00033143,5]
[356958121,1743495041264,-301.43,0.00033158,2]
[356958123,1743495041273,-451.43,0.00033284,2]
[356958125,1743495041283,-152.35,0.00033292,2]
[356958127,1743495041293,-212.0,0.00033441,2]
[356958129,1743495041303,-745.84667829,0.000335,2]
[356958131,1743495041312,-19980.93,0.00033761,2]
[356958133,1743495041323,-1000.0,0.00033935,2]
[356958135,1743495041333,-4319.6738677,0.00033991,2]
[356958137,1743495041342,-164.72664769,0.00033991,2]
[356958139,1743495041351,-1000.0,0.00034013,2]
[356958141,1743495041361,-700.27662491,0.00034091,2]
[356958143,1743495041371,-360.60887329,0.00034091,2]
[356958145,1743495041381,-346.80561262,0.00034091,2]
[356958147,1743495041391,-758.36761972,0.00034091,2]
[356958149,1743495041400,-1514.21403679,0.00034091,2]
[356958151,1743495041410,-1025.13791687,0.00034091,2]
[356958153,1743495041420,-5161.93547014,0.00034091,2]
[356958155,1743495041430,-2444.70432466,0.00034091,2]
[356958157,1743495041440,-4029.27354656,0.00034091,2]
[356958159,1743495041450,-79938.57508875,0.00034091,2]
[356958161,1743495041460,-2693.90967417,0.00034091,2]
[356958163,1743495041469,-2042.21273784,0.00034091,2]
[356958165,1743495041479,-151.0,0.00034091,7]
[356958166,1743495041489,-151.0,0.00034091,7]
[356958167,1743495041499,-151.0,0.00034091,7]
[356958168,1743495041508,-151.0,0.00034091,7]
[356958169,1743495041517,-151.0,0.00034091,7]
[356958170,1743495041527,-151.0,0.00034091,7]
[356958171,1743495041536,-151.0,0.00034091,7]
[356958172,1743495041546,-151.0,0.00034091,7]
[356958173,1743495041556,-151.0,0.00034091,7]
[356958174,1743495041566,-151.0,0.00034091,7]
[356958175,1743495041575,-151.0,0.00034091,7]
[356958176,1743495041585,-338.447988,0.00034091,7]
[356958177,1743495041594,-338.447988,0.00034091,7]
[356958178,1743495041604,-151.0,0.00034091,7]
[356958179,1743495041614,-551.536254,0.00034091,7]
[356958180,1743495041623,-551.536254,0.00034091,7]
[356958181,1743495041632,-151.0,0.00034091,7]
[356958182,1743495041643,-152.021359,0.00034091,7]
[356958183,1743495041652,-151.0,0.00034091,7]
[356958184,1743495041661,-151.0,0.00034091,7]
[356958185,1743495041671,-151.273915,0.00034091,7]
[356958186,1743495041681,-151.0,0.00034091,7]
[356958187,1743495041693,-151.0,0.00034091,7]
[356958188,1743495041703,-152.277521,0.00034091,7]
[356958189,1743495041712,-154.808543,0.00034091,7]
[356958190,1743495041721,-151.0,0.00034091,7]
[356958191,1743495041732,-151.0,0.00034091,7]
[356958192,1743495041742,-151.0,0.00034091,7]
[356958193,1743495041752,-151.0,0.00034091,7]
[356958194,1743495041762,-151.0,0.00034091,7]
[356958195,1743495041772,-151.0,0.00034091,7]
[356958196,1743495041782,-151.0,0.00034091,7]
[356958197,1743495041792,-151.0,0.00034091,7]
[356958198,1743495041804,-151.0,0.00034091,7]
[356958199,1743495041812,-151.0,0.00034091,7]
[356958200,1743495041822,-151.0,0.00034091,7]
[356958201,1743495041831,-151.0,0.00034091,7]
[356958202,1743495041842,-151.0,0.00034091,7]
[356958203,1743495041851,-151.0,0.00034091,7]
[356958204,1743495041861,-151.0,0.00034091,7]
[356958205,1743495041872,-151.0,0.00034091,7]
[356958206,1743495041882,-151.0,0.00034091,7]
[356958207,1743495041890,-151.0,0.00034091,7]
[356958208,1743495041898,-151.0,0.00034091,7]
[356958209,1743495041905,-151.0,0.00034091,7]
[356958210,1743495041914,-151.0,0.00034091,7]
[356958211,1743495041924,-151.0,0.00034091,7]
[356958212,1743495041934,-450.185156,0.00034091,7]
[356958213,1743495041944,-450.185156,0.00034091,7]
[356958214,1743495041954,-151.0,0.00034091,7]
[356958215,1743495041963,-151.0,0.00034091,7]
[356958216,1743495041973,-151.0,0.00034091,7]
[356958217,1743495041985,-151.0,0.00034091,7]
[356958218,1743495041994,-221.899426,0.00034091,7]
[356958219,1743495042004,-151.0,0.00034091,7]
[356958220,1743495042013,-151.0,0.00034091,7]
[356958221,1743495042023,-151.0,0.00034091,7]
[356958222,1743495042033,-151.0,0.00034091,7]
[356958223,1743495042043,-151.0,0.00034091,7]
[356958224,1743495042054,-203.0,0.0003411,30]
[356958225,1743495042064,-156.986897,0.00034113,7]
[356958226,1743495042074,-151.0,0.00034113,7]
[356958227,1743495042085,-158.7,0.00034192,2]
[356958228,1743495042095,-451.43,0.00035548,2]
[356958229,1743495042106,-150.43,0.00035616,2]
[356958230,1743495042116,-2188.836128,0.00036188,2]